[Event "*** SCC Grand Prix: Titled Tuesday Blitz"]
[Site "Chess.com"]
[Date "2020.08.11"]
[Round "9"]
[White "Firouzja2003"]
[Black "ChessWarrior7197"]
[Result "0-1"]
[WhiteElo "3029"]
[BlackElo "2935"]
[TimeControl "180+1"]
[EndTime "11:44:55 PDT"]
[Termination "ChessWarrior7197 won on time"]

1. e4 {[%clk 0:03:00.9]} 1... e5 {[%clk 0:02:59.3]} 2. Nf3 {[%clk 0:03:01.1]}
2... Nc6 {[%clk 0:02:59.7]} 3. Bb5 {[%clk 0:03:01.5]} 3... a6 {[%clk 0:02:59.8]}
4. Ba4 {[%clk 0:03:02]} 4... Nf6 {[%clk 0:03:00.3]} 5. O-O {[%clk 0:03:02.4]}
5... Nxe4 {[%clk 0:03:00.6]} 6. d4 {[%clk 0:03:02.4]} 6... b5 {[%clk 0:03:00.6]}
7. Bb3 {[%clk 0:03:02.8]} 7... d5 {[%clk 0:03:01.2]} 8. dxe5 {[%clk 0:03:03.4]}
8... Be6 {[%clk 0:03:01.5]} 9. c3 {[%clk 0:03:03.8]} 9... Bc5 {[%clk 0:02:58.9]}
10. Qd3 {[%clk 0:03:01.8]} 10... O-O {[%clk 0:02:56.9]} 11. Nbd2 {[%clk
0:03:01.5]} 11... f5 {[%clk 0:02:37.5]} 12. Nd4 {[%clk 0:02:50.6]} 12... Nxd4
{[%clk 0:02:34.5]} 13. cxd4 {[%clk 0:02:50.6]} 13... Bb6 {[%clk 0:02:33.2]} 14.
f3 {[%clk 0:02:16.2]} 14... c5 {[%clk 0:02:25.4]} 15. fxe4 {[%clk 0:02:13.2]}
15... fxe4 {[%clk 0:02:25.1]} 16. Rxf8+ {[%clk 0:01:18.1]} 16... Qxf8 {[%clk
0:02:24.4]} 17. Qg3 {[%clk 0:00:37.5]} 17... c4 {[%clk 0:02:24]} 18. Qe3 {[%clk
0:00:29]} 18... Qb8 {[%clk 0:01:39]} 19. Nxe4 {[%clk 0:00:16.7]} 19... dxe4
{[%clk 0:01:35.1]} 20. Bc2 {[%clk 0:00:17.2]} 20... Qd8 {[%clk 0:01:27.7]} 21.
Kh1 {[%clk 0:00:08.9]} 21... Qxd4 {[%clk 0:01:27.1]} 22. Qxd4 {[%clk 0:00:05.3]}
22... Bxd4 {[%clk 0:01:28]} 23. Bxe4 {[%clk 0:00:05.7]} 23... Rf8 {[%clk
0:01:27.9]} 24. Bg5 {[%clk 0:00:05.1]} 24... Bxb2 {[%clk 0:01:27.7]} 25. Rd1
{[%clk 0:00:04.6]} 25... Bxe5 {[%clk 0:01:27.3]} 26. Bf3 {[%clk 0:00:02.6]}
26... Bf5 {[%clk 0:01:23.9]} 27. Rd5 {[%clk 0:00:02.5]} 27... Re8 {[%clk
0:01:20.6]} 28. g4 {[%clk 0:00:01.9]} 28... Bg6 {[%clk 0:01:18.8]} 29. Rc5
{[%clk 0:00:02.5]} 29... Bd4 {[%clk 0:01:16.6]} 30. Rc6 {[%clk 0:00:02.6]} 30...
c3 {[%clk 0:01:15.6]} 31. Bd5+ {[%clk 0:00:02.5]} 31... Kh8 {[%clk 0:01:15.2]}
32. h4 {[%clk 0:00:02.7]} 32... c2 {[%clk 0:01:09.9]} 33. h5 {[%clk 0:00:03.1]}
33... Bd3 {[%clk 0:01:10.1]} 34. h6 {[%clk 0:00:03.7]} 34... gxh6 {[%clk
0:01:05.6]} 35. Bxh6 {[%clk 0:00:04.6]} 35... Be3 {[%clk 0:01:04.3]} 0-1

[Event "*** SCC Grand Prix: Titled Tuesday Blitz"]
[Site "Chess.com"]
[Date "2020.08.11"]
[Round "9"]
[White "korbul"]
[Black "DonPreuss"]
[Result "0-1"]
[WhiteElo "2540"]
[BlackElo "2238"]
[TimeControl "180+1"]
[EndTime "11:44:55 PDT"]
[Termination "DonPreuss won by resignation"]

1. e4 {[%clk 0:03:00.9]} 1... e5 {[%clk 0:02:59.1]} 2. Nf3 {[%clk 0:03:00.6]}
2... d5 {[%clk 0:02:58.8]} 3. exd5 {[%clk 0:02:58.3]} 3... e4 {[%clk 0:02:58.8]}
4. Bb5+ {[%clk 0:02:54.8]} 4... c6 {[%clk 0:02:54.3]} 5. dxc6 {[%clk 0:02:53.7]}
5... bxc6 {[%clk 0:02:53.9]} 6. Qe2 {[%clk 0:02:51.2]} 6... cxb5 {[%clk
0:02:53.6]} 7. Qxe4+ {[%clk 0:02:51.2]} 7... Qe7 {[%clk 0:02:53.4]} 8. Ne5
{[%clk 0:02:50.9]} 8... Bb7 {[%clk 0:02:46.7]} 9. Qe2 {[%clk 0:02:45.5]} 9...
Bxg2 {[%clk 0:02:33.6]} 10. Rg1 {[%clk 0:02:41.8]} 10... Bc6 {[%clk 0:02:22.1]}
11. d4 {[%clk 0:02:38.5]} 11... f6 {[%clk 0:02:22]} 12. Nc3 {[%clk 0:02:36.8]}
12... fxe5 {[%clk 0:02:18.6]} 13. dxe5 {[%clk 0:02:36.9]} 13... Qe6 {[%clk
0:02:04.5]} 14. Bg5 {[%clk 0:02:32.5]} 14... Be7 {[%clk 0:01:49.6]} 15. O-O-O
{[%clk 0:02:27.9]} 15... Bxg5+ {[%clk 0:01:47.5]} 16. Rxg5 {[%clk 0:02:27.2]}
16... Nd7 {[%clk 0:01:42.6]} 17. Nxb5 {[%clk 0:02:12.8]} 17... Bxb5 {[%clk
0:01:39.1]} 18. Qxb5 {[%clk 0:02:13.7]} 18... Rd8 {[%clk 0:01:30.1]} 19. Rd6
{[%clk 0:02:01.8]} 19... Qe7 {[%clk 0:01:27.7]} 20. f4 {[%clk 0:01:50.8]} 20...
Nh6 {[%clk 0:01:19.1]} 21. Qd5 {[%clk 0:01:49.2]} 21... Qf7 {[%clk 0:01:13.3]}
22. Re6+ {[%clk 0:01:39.6]} 22... Kf8 {[%clk 0:01:06.3]} 23. Qd6+ {[%clk
0:01:39.7]} 23... Kg8 {[%clk 0:01:05.1]} 24. f5 {[%clk 0:00:47.9]} 24... Nxf5
{[%clk 0:00:56.3]} 25. Qd5 {[%clk 0:00:45.6]} 25... Ne3 {[%clk 0:00:48.3]} 26.
Qb3 {[%clk 0:00:29.1]} 26... Nc5 {[%clk 0:00:34.6]} 27. Rd6 {[%clk 0:00:09.5]}
27... Nxb3+ {[%clk 0:00:33.4]} 28. axb3 {[%clk 0:00:09.8]} 0-1

[Event "*** SCC Grand Prix: Titled Tuesday Blitz"]
[Site "Chess.com"]
[Date "2020.08.11"]
[Round "9"]
[White "Alexander_Zubov"]
[Black "PavelShkapenko"]
[Result "1-0"]
[WhiteElo "2841"]
[BlackElo "2672"]
[TimeControl "180+1"]
[EndTime "11:44:56 PDT"]
[Termination "Alexander_Zubov won by resignation"]

1. d4 {[%clk 0:03:00.9]} 1... d5 {[%clk 0:02:58.1]} 2. c4 {[%clk 0:03:00.8]}
2... e6 {[%clk 0:02:58]} 3. Nf3 {[%clk 0:03:00.7]} 3... c5 {[%clk 0:02:39.3]} 4.
cxd5 {[%clk 0:03:00.1]} 4... exd5 {[%clk 0:02:39.5]} 5. Nc3 {[%clk 0:03:00.7]}
5... Nc6 {[%clk 0:02:38.3]} 6. Bf4 {[%clk 0:03:01.3]} 6... c4 {[%clk 0:02:30.6]}
7. a3 {[%clk 0:03:00.4]} 7... Nf6 {[%clk 0:02:29.4]} 8. e3 {[%clk 0:03:00.6]}
8... Be7 {[%clk 0:02:23.3]} 9. Be2 {[%clk 0:03:00.2]} 9... O-O {[%clk
0:02:23.1]} 10. O-O {[%clk 0:03:00.1]} 10... h6 {[%clk 0:02:20.4]} 11. Ne5
{[%clk 0:02:59.4]} 11... Qb6 {[%clk 0:02:16.5]} 12. Na4 {[%clk 0:02:48.4]} 12...
Qd8 {[%clk 0:02:02.4]} 13. b3 {[%clk 0:02:45.5]} 13... cxb3 {[%clk 0:01:37.5]}
14. Nxc6 {[%clk 0:02:42.6]} 14... bxc6 {[%clk 0:01:36.7]} 15. Qxb3 {[%clk
0:02:43.2]} 15... Ne4 {[%clk 0:01:32.3]} 16. Qc2 {[%clk 0:02:42.3]} 16... Bd7
{[%clk 0:01:29]} 17. Bd3 {[%clk 0:02:41.3]} 17... Nf6 {[%clk 0:01:24]} 18. Nc5
{[%clk 0:02:37.1]} 18... Bc8 {[%clk 0:00:54.9]} 19. h3 {[%clk 0:02:32.1]} 19...
Nd7 {[%clk 0:00:53.6]} 20. Na6 {[%clk 0:02:23.1]} 20... Bxa6 {[%clk 0:00:43.8]}
21. Bxa6 {[%clk 0:02:24]} 21... Qb6 {[%clk 0:00:39.6]} 22. Qa4 {[%clk 0:02:23]}
22... Nb8 {[%clk 0:00:31.5]} 23. Be2 {[%clk 0:02:21.4]} 23... Qd8 {[%clk
0:00:19.2]} 24. Bxb8 {[%clk 0:02:15.6]} 24... Rxb8 {[%clk 0:00:17.6]} 25. Qxc6
{[%clk 0:02:15.9]} 25... Rb3 {[%clk 0:00:15.3]} 26. a4 {[%clk 0:02:13.6]} 26...
Rb6 {[%clk 0:00:14.4]} 27. Qc2 {[%clk 0:02:11]} 27... a5 {[%clk 0:00:13.7]} 28.
Rfc1 {[%clk 0:02:08.9]} 28... Bb4 {[%clk 0:00:13.6]} 29. Qc7 {[%clk 0:02:07.6]}
29... Qf6 {[%clk 0:00:13.7]} 30. Bf3 {[%clk 0:02:06.6]} 30... Rd6 {[%clk
0:00:13.1]} 31. Qb7 {[%clk 0:02:05.5]} 31... g6 {[%clk 0:00:12.8]} 32. Bxd5
{[%clk 0:02:03.9]} 32... Rfd8 {[%clk 0:00:12.1]} 33. Bf3 {[%clk 0:02:03.4]}
33... Kg7 {[%clk 0:00:12.1]} 34. Rc6 {[%clk 0:02:02.3]} 34... Rxc6 {[%clk
0:00:11.6]} 35. Qxc6 {[%clk 0:02:02.6]} 35... Qxc6 {[%clk 0:00:11.8]} 36. Bxc6
{[%clk 0:02:02.6]} 36... Rc8 {[%clk 0:00:12.4]} 37. d5 {[%clk 0:02:02.6]} 37...
Bd6 {[%clk 0:00:12.6]} 38. Rb1 {[%clk 0:02:02.5]} 38... Rb8 {[%clk 0:00:12.8]}
39. Bb5 {[%clk 0:01:59.6]} 39... Rc8 {[%clk 0:00:12.4]} 40. Bf1 {[%clk
0:01:58.8]} 40... Kf6 {[%clk 0:00:10.3]} 41. Rb7 {[%clk 0:01:47.4]} 41... Rc7
{[%clk 0:00:09.7]} 42. Rb5 {[%clk 0:01:45.8]} 42... Rc5 {[%clk 0:00:09.5]} 43.
f4 {[%clk 0:01:42.8]} 43... Rxb5 {[%clk 0:00:08.8]} 44. Bxb5 {[%clk 0:01:43.7]}
44... Bc5 {[%clk 0:00:08.9]} 45. Kf2 {[%clk 0:01:44.1]} 45... Ke7 {[%clk
0:00:09.2]} 46. Kf3 {[%clk 0:01:44.4]} 46... f6 {[%clk 0:00:09.4]} 47. h4 {[%clk
0:01:43]} 47... Kd6 {[%clk 0:00:09.8]} 48. e4 {[%clk 0:01:43]} 48... g5 {[%clk
0:00:09.8]} 49. g3 {[%clk 0:01:43.5]} 49... gxh4 {[%clk 0:00:09.3]} 50. gxh4
{[%clk 0:01:44.4]} 50... Bb4 {[%clk 0:00:09.5]} 51. Kg4 {[%clk 0:01:43.1]} 51...
Bd2 {[%clk 0:00:09.3]} 52. h5 {[%clk 0:01:43.5]} 52... Bc1 {[%clk 0:00:09.4]}
53. Kf5 {[%clk 0:01:43.9]} 53... Bd2 {[%clk 0:00:09.5]} 54. Bc6 {[%clk
0:01:44.4]} 54... Bc1 {[%clk 0:00:09.6]} 55. e5+ {[%clk 0:01:44.7]} 55... fxe5
{[%clk 0:00:09.4]} 56. fxe5+ {[%clk 0:01:45.6]} 56... Ke7 {[%clk 0:00:10]} 57.
d6+ {[%clk 0:01:45.6]} 57... Kd8 {[%clk 0:00:09.4]} 58. e6 {[%clk 0:01:45.9]}
1-0

[Event "*** SCC Grand Prix: Titled Tuesday Blitz"]
[Site "Chess.com"]
[Date "2020.08.11"]
[Round "9"]
[White "FMJoseHerrera"]
[Black "ketster"]
[Result "0-1"]
[WhiteElo "2497"]
[BlackElo "2388"]
[TimeControl "180+1"]
[EndTime "11:44:57 PDT"]
[Termination "ketster won by checkmate"]

1. Nf3 {[%clk 0:03:00.9]} 1... Nf6 {[%clk 0:02:58.6]} 2. g3 {[%clk 0:03:01.8]}
2... d5 {[%clk 0:02:57]} 3. Bg2 {[%clk 0:03:02.7]} 3... b5 {[%clk 0:02:54.4]} 4.
d3 {[%clk 0:03:03]} 4... Bb7 {[%clk 0:02:54.2]} 5. O-O {[%clk 0:03:02.5]} 5...
e6 {[%clk 0:02:54.1]} 6. a4 {[%clk 0:02:54.1]} 6... b4 {[%clk 0:02:48]} 7. c4
{[%clk 0:02:54.2]} 7... c5 {[%clk 0:02:28.9]} 8. b3 {[%clk 0:02:53.9]} 8... Be7
{[%clk 0:02:24.8]} 9. Bb2 {[%clk 0:02:53.3]} 9... O-O {[%clk 0:02:22.6]} 10. e3
{[%clk 0:02:52.7]} 10... a5 {[%clk 0:02:21.1]} 11. Nbd2 {[%clk 0:02:51.6]} 11...
Nbd7 {[%clk 0:02:19]} 12. Rc1 {[%clk 0:02:51.2]} 12... Nb6 {[%clk 0:02:17.4]}
13. Qe2 {[%clk 0:02:49.3]} 13... Rc8 {[%clk 0:02:14.5]} 14. Rfd1 {[%clk
0:02:49.3]} 14... Qc7 {[%clk 0:02:10.7]} 15. cxd5 {[%clk 0:02:47.6]} 15... Bxd5
{[%clk 0:01:59.1]} 16. Nc4 {[%clk 0:02:41.2]} 16... Nxc4 {[%clk 0:01:52.3]} 17.
dxc4 {[%clk 0:02:40.7]} 17... Be4 {[%clk 0:01:51.4]} 18. Nh4 {[%clk 0:02:35.9]}
18... Qb7 {[%clk 0:01:42.1]} 19. Bxe4 {[%clk 0:02:30.4]} 19... Nxe4 {[%clk
0:01:43]} 20. Qf3 {[%clk 0:02:31.3]} 20... Bxh4 {[%clk 0:01:40.1]} 21. gxh4
{[%clk 0:02:31.4]} 21... f5 {[%clk 0:01:26.4]} 22. Be5 {[%clk 0:02:30.4]} 22...
Rcd8 {[%clk 0:01:22.4]} 23. h5 {[%clk 0:02:29.5]} 23... Qf7 {[%clk 0:01:16.8]}
24. Rxd8 {[%clk 0:02:24.7]} 24... Rxd8 {[%clk 0:01:15.8]} 25. Rd1 {[%clk
0:02:25.6]} 25... Rxd1+ {[%clk 0:01:11.4]} 26. Qxd1 {[%clk 0:02:26.5]} 26... h6
{[%clk 0:01:11.6]} 27. Qd8+ {[%clk 0:01:54]} 27... Kh7 {[%clk 0:01:09.7]} 28.
Qxa5 {[%clk 0:01:54.2]} 28... Qxh5 {[%clk 0:00:46.9]} 29. Qc7 {[%clk 0:01:54]}
29... Qd1+ {[%clk 0:00:32.8]} 30. Kg2 {[%clk 0:01:53.8]} 30... Qg4+ {[%clk
0:00:30.8]} 31. Bg3 {[%clk 0:01:53.6]} 31... Nd2 {[%clk 0:00:27.4]} 32. Qxc5
{[%clk 0:01:30.4]} 32... Qd1 {[%clk 0:00:16.8]} 33. Bf4 {[%clk 0:00:46.7]} 33...
Qf1+ {[%clk 0:00:16.2]} 34. Kg3 {[%clk 0:00:43.9]} 34... Qg1+ {[%clk 0:00:16.4]}
35. Kh3 {[%clk 0:00:44.4]} 35... Qg4# {[%clk 0:00:16.5]} 0-1

[Event "*** SCC Grand Prix: Titled Tuesday Blitz"]
[Site "Chess.com"]
[Date "2020.08.11"]
[Round "9"]
[White "northridgehawk"]
[Black "Ze-Pequeno"]
[Result "0-1"]
[WhiteElo "2299"]
[BlackElo "2179"]
[TimeControl "180+1"]
[EndTime "11:44:57 PDT"]
[Termination "Ze-Pequeno won by checkmate"]

1. e4 {[%clk 0:03:00.9]} 1... c5 {[%clk 0:02:59.2]} 2. Nf3 {[%clk 0:02:55.7]}
2... d6 {[%clk 0:02:59.1]} 3. d4 {[%clk 0:02:54.7]} 3... cxd4 {[%clk 0:02:59.3]}
4. Nxd4 {[%clk 0:02:55.6]} 4... Nf6 {[%clk 0:02:59.7]} 5. Nc3 {[%clk 0:02:55.7]}
5... a6 {[%clk 0:03:00]} 6. h3 {[%clk 0:02:55.2]} 6... e6 {[%clk 0:02:58.5]} 7.
g4 {[%clk 0:02:55.3]} 7... Be7 {[%clk 0:02:58.1]} 8. Bg2 {[%clk 0:02:55.8]} 8...
Nfd7 {[%clk 0:02:57]} 9. O-O {[%clk 0:02:56.2]} 9... Nc6 {[%clk 0:02:48.8]} 10.
Nde2 {[%clk 0:02:53.2]} 10... Rb8 {[%clk 0:02:42.6]} 11. a4 {[%clk 0:02:51.8]}
11... b6 {[%clk 0:02:40.7]} 12. Be3 {[%clk 0:02:43.4]} 12... Bb7 {[%clk
0:02:38.9]} 13. b3 {[%clk 0:02:43]} 13... Qc7 {[%clk 0:02:33.3]} 14. Ng3 {[%clk
0:02:42.5]} 14... Rc8 {[%clk 0:02:19.8]} 15. Nce2 {[%clk 0:02:42]} 15... O-O
{[%clk 0:02:01.1]} 16. c4 {[%clk 0:02:42.2]} 16... Nc5 {[%clk 0:01:50.5]} 17.
Nc3 {[%clk 0:02:36.6]} 17... Nb4 {[%clk 0:01:42.5]} 18. Qd2 {[%clk 0:02:24.7]}
18... Nxb3 {[%clk 0:01:08.8]} 19. Qb2 {[%clk 0:02:23.4]} 19... Nxa1 {[%clk
0:01:08.7]} 20. Qxa1 {[%clk 0:02:24.3]} 20... Nc2 {[%clk 0:01:07]} 21. Qc1
{[%clk 0:02:22]} 21... Nxe3 {[%clk 0:01:05.7]} 22. Qxe3 {[%clk 0:02:22.9]} 22...
Ba8 {[%clk 0:00:53.9]} 23. Rb1 {[%clk 0:02:18.8]} 23... Qxc4 {[%clk 0:00:52]}
24. Nce2 {[%clk 0:02:16.6]} 24... Qc5 {[%clk 0:00:50.4]} 25. Rxb6 {[%clk
0:02:12.8]} 25... Qxe3 {[%clk 0:00:49.4]} 26. fxe3 {[%clk 0:02:13.7]} 26... Rc6
{[%clk 0:00:45.8]} 27. Rb2 {[%clk 0:02:08]} 27... Rfc8 {[%clk 0:00:41.7]} 28.
Nf1 {[%clk 0:02:06]} 28... Rc2 {[%clk 0:00:39.6]} 29. Rxc2 {[%clk 0:02:02.9]}
29... Rxc2 {[%clk 0:00:38.7]} 30. Nd4 {[%clk 0:01:55.9]} 30... Ra2 {[%clk
0:00:37.5]} 31. Bf3 {[%clk 0:01:50.6]} 31... Rxa4 {[%clk 0:00:36.2]} 32. Kf2
{[%clk 0:01:50.6]} 32... Ra2+ {[%clk 0:00:35.2]} 33. Kg3 {[%clk 0:01:49.6]}
33... a5 {[%clk 0:00:33.5]} 34. Bd1 {[%clk 0:01:45.3]} 34... a4 {[%clk 0:00:31]}
35. Kf3 {[%clk 0:01:44.4]} 35... Ra1 {[%clk 0:00:27.3]} 36. Be2 {[%clk
0:01:42.8]} 36... a3 {[%clk 0:00:25.7]} 37. Nd2 {[%clk 0:01:42.6]} 37... a2
{[%clk 0:00:22.3]} 38. Bc4 {[%clk 0:01:38.1]} 38... Rd1 {[%clk 0:00:20.5]} 39.
N2b3 {[%clk 0:01:36.5]} 39... a1=Q {[%clk 0:00:19.6]} 40. Nxa1 {[%clk
0:01:36.7]} 40... Rxa1 {[%clk 0:00:19.9]} 41. g5 {[%clk 0:01:36]} 41... Bxg5
{[%clk 0:00:17.8]} 42. Ne2 {[%clk 0:01:34]} 42... Ra3 {[%clk 0:00:16.3]} 43. Kg4
{[%clk 0:01:30.2]} 43... Bxe3 {[%clk 0:00:15.6]} 44. Ng3 {[%clk 0:01:28.7]}
44... Bd4 {[%clk 0:00:14.6]} 45. h4 {[%clk 0:01:25.7]} 45... Be5 {[%clk
0:00:14.4]} 46. Ne2 {[%clk 0:01:24.7]} 46... Bxe4 {[%clk 0:00:14.1]} 47. h5
{[%clk 0:01:23.9]} 47... f5+ {[%clk 0:00:13.5]} 48. Kh4 {[%clk 0:01:20.6]} 48...
Bf6# {[%clk 0:00:13.9]} 0-1

[Event "*** SCC Grand Prix: Titled Tuesday Blitz"]
[Site "Chess.com"]
[Date "2020.08.11"]
[Round "9"]
[White "HanSchut"]
[Black "Chessalary"]
[Result "0-1"]
[WhiteElo "2297"]
[BlackElo "2292"]
[TimeControl "180+1"]
[EndTime "11:44:58 PDT"]
[Termination "Chessalary won on time"]

1. e4 {[%clk 0:03:00.9]} 1... d5 {[%clk 0:02:59.5]} 2. exd5 {[%clk 0:03:00.6]}
2... Qxd5 {[%clk 0:03:00.4]} 3. Nc3 {[%clk 0:03:01.1]} 3... Qd8 {[%clk 0:03:01]}
4. d4 {[%clk 0:03:01.6]} 4... g6 {[%clk 0:03:00]} 5. Nf3 {[%clk 0:03:01.9]} 5...
Bg7 {[%clk 0:03:00.5]} 6. h3 {[%clk 0:02:51.9]} 6... Nf6 {[%clk 0:03:00.9]} 7.
Bg5 {[%clk 0:02:44.7]} 7... O-O {[%clk 0:03:00.7]} 8. Qd2 {[%clk 0:02:44.9]}
8... c6 {[%clk 0:02:57]} 9. Bh6 {[%clk 0:02:43.2]} 9... b5 {[%clk 0:02:53.1]}
10. Bd3 {[%clk 0:02:17.5]} 10... Nbd7 {[%clk 0:02:45.8]} 11. a4 {[%clk
0:02:17.5]} 11... b4 {[%clk 0:02:35.8]} 12. Ne4 {[%clk 0:02:17.3]} 12... Nd5
{[%clk 0:02:23.3]} 13. O-O {[%clk 0:01:47.4]} 13... N7f6 {[%clk 0:02:14.2]} 14.
Ne5 {[%clk 0:01:40.4]} 14... Bb7 {[%clk 0:01:55.5]} 15. Nc5 {[%clk 0:01:34.4]}
15... Qc7 {[%clk 0:01:47]} 16. a5 {[%clk 0:01:15.3]} 16... Rad8 {[%clk
0:01:44.1]} 17. a6 {[%clk 0:01:10.2]} 17... Bc8 {[%clk 0:01:40.6]} 18. c4 {[%clk
0:00:44.9]} 18... bxc3 {[%clk 0:01:40.2]} 19. bxc3 {[%clk 0:00:45.6]} 19... Nh5
{[%clk 0:01:24.1]} 20. Bxg7 {[%clk 0:00:25.3]} 20... Kxg7 {[%clk 0:01:25]} 21.
Rfe1 {[%clk 0:00:15]} 21... Ndf4 {[%clk 0:01:21.1]} 22. Bf1 {[%clk 0:00:14]}
22... Nd5 {[%clk 0:01:04.9]} 23. c4 {[%clk 0:00:10.5]} 23... Nb6 {[%clk
0:01:01.2]} 24. Qc3 {[%clk 0:00:10.3]} 24... Nf6 {[%clk 0:00:59.6]} 25. Nf3
{[%clk 0:00:09]} 25... Qf4 {[%clk 0:00:55.3]} 26. Nb7 {[%clk 0:00:05.7]} 26...
Bxb7 {[%clk 0:00:44.3]} 27. axb7 {[%clk 0:00:04.8]} 27... Rb8 {[%clk 0:00:41.4]}
28. Rxa7 {[%clk 0:00:04.6]} 28... Qc7 {[%clk 0:00:38]} 0-1

[Event "*** SCC Grand Prix: Titled Tuesday Blitz"]
[Site "Chess.com"]
[Date "2020.08.11"]
[Round "9"]
[White "lucachess49"]
[Black "GelmanAlexander"]
[Result "1-0"]
[WhiteElo "2458"]
[BlackElo "2563"]
[TimeControl "180+1"]
[EndTime "11:44:59 PDT"]
[Termination "lucachess49 won on time"]

1. d4 {[%clk 0:03:00.5]} 1... Nf6 {[%clk 0:02:59.5]} 2. c4 {[%clk 0:02:57.5]}
2... c5 {[%clk 0:02:59.7]} 3. d5 {[%clk 0:02:56.9]} 3... b5 {[%clk 0:03:00]} 4.
cxb5 {[%clk 0:02:56.5]} 4... a6 {[%clk 0:03:00.2]} 5. bxa6 {[%clk 0:02:57.4]}
5... e6 {[%clk 0:03:00.2]} 6. Nc3 {[%clk 0:02:54.9]} 6... exd5 {[%clk
0:03:00.1]} 7. Nxd5 {[%clk 0:02:50.3]} 7... Nxa6 {[%clk 0:03:00.7]} 8. Bg5
{[%clk 0:02:36.4]} 8... Bb7 {[%clk 0:02:59.4]} 9. Nxf6+ {[%clk 0:02:32.7]} 9...
gxf6 {[%clk 0:03:00.3]} 10. Bd2 {[%clk 0:02:32]} 10... Qb6 {[%clk 0:02:57.7]}
11. e3 {[%clk 0:02:28.6]} 11... Nb4 {[%clk 0:02:43.4]} 12. Nf3 {[%clk 0:02:23]}
12... Be4 {[%clk 0:01:56.6]} 13. Bxb4 {[%clk 0:02:20.2]} 13... Qxb4+ {[%clk
0:01:44.4]} 14. Qd2 {[%clk 0:02:20.2]} 14... c4 {[%clk 0:01:43]} 15. a3 {[%clk
0:02:08.9]} 15... Qa4 {[%clk 0:00:37.4]} 16. Rd1 {[%clk 0:02:02.3]} 16... d5
{[%clk 0:00:36.7]} 17. Be2 {[%clk 0:01:58.3]} 17... f5 {[%clk 0:00:28.8]} 18.
O-O {[%clk 0:01:57.7]} 18... Bg7 {[%clk 0:00:29.3]} 19. Nd4 {[%clk 0:01:56.1]}
19... f4 {[%clk 0:00:29.1]} 20. f3 {[%clk 0:01:47.9]} 20... Bg6 {[%clk
0:00:23.8]} 21. exf4 {[%clk 0:01:47.6]} 21... O-O {[%clk 0:00:24.3]} 22. f5
{[%clk 0:01:39.8]} 22... Bxd4+ {[%clk 0:00:23.7]} 23. Qxd4 {[%clk 0:01:40.4]}
23... Bxf5 {[%clk 0:00:24.6]} 24. Qxd5 {[%clk 0:01:41]} 24... Be6 {[%clk
0:00:24.1]} 25. Qg5+ {[%clk 0:01:40]} 25... Kh8 {[%clk 0:00:24.1]} 26. Qf6+
{[%clk 0:01:40.6]} 26... Kg8 {[%clk 0:00:24.3]} 27. f4 {[%clk 0:01:08.2]} 27...
Qc2 {[%clk 0:00:20]} 28. Bf3 {[%clk 0:00:53.7]} 28... Ra5 {[%clk 0:00:19.2]} 29.
Rf2 {[%clk 0:00:49.1]} 29... Qb3 {[%clk 0:00:12.3]} 30. Rdf1 {[%clk 0:00:46.5]}
30... Rf5 {[%clk 0:00:12.1]} 31. Qh6 {[%clk 0:00:46.4]} 31... Rd8 {[%clk
0:00:10.6]} 32. Be4 {[%clk 0:00:45.7]} 1-0

[Event "*** SCC Grand Prix: Titled Tuesday Blitz"]
[Site "Chess.com"]
[Date "2020.08.11"]
[Round "9"]
[White "PavelChernomordik"]
[Black "BursaBBSatranc"]
[Result "0-1"]
[WhiteElo "2358"]
[BlackElo "2512"]
[TimeControl "180+1"]
[EndTime "11:45:08 PDT"]
[Termination "BursaBBSatranc won by resignation"]

1. e4 {[%clk 0:03:00.9]} 1... e5 {[%clk 0:02:59.9]} 2. Nf3 {[%clk 0:03:00.2]}
2... Nf6 {[%clk 0:02:59.6]} 3. Nc3 {[%clk 0:02:59.4]} 3... Nc6 {[%clk
0:02:59.1]} 4. Bb5 {[%clk 0:02:55.9]} 4... Bb4 {[%clk 0:02:58.2]} 5. O-O {[%clk
0:02:54.5]} 5... O-O {[%clk 0:02:58]} 6. d3 {[%clk 0:02:48.6]} 6... d6 {[%clk
0:02:58]} 7. Bg5 {[%clk 0:02:43.2]} 7... Bxc3 {[%clk 0:02:58]} 8. bxc3 {[%clk
0:02:41.4]} 8... Qe7 {[%clk 0:02:58.6]} 9. h3 {[%clk 0:02:37.8]} 9... Nd8 {[%clk
0:02:46.2]} 10. Re1 {[%clk 0:02:34.2]} 10... Ne6 {[%clk 0:02:45.9]} 11. Be3
{[%clk 0:02:28]} 11... c5 {[%clk 0:02:37.5]} 12. a4 {[%clk 0:02:17.7]} 12... Bd7
{[%clk 0:02:22.9]} 13. Bc4 {[%clk 0:02:08.6]} 13... Bc6 {[%clk 0:02:10.7]} 14.
Nh4 {[%clk 0:02:05.3]} 14... g6 {[%clk 0:02:02.5]} 15. Bh6 {[%clk 0:02:01.5]}
15... Rfe8 {[%clk 0:01:58.9]} 16. Qd2 {[%clk 0:02:00]} 16... Nxe4 {[%clk
0:01:44.2]} 17. Nxg6 {[%clk 0:01:47.1]} 17... hxg6 {[%clk 0:01:24.8]} 18. dxe4
{[%clk 0:01:44.5]} 18... Rad8 {[%clk 0:01:15.3]} 19. a5 {[%clk 0:01:38.4]} 19...
Qf6 {[%clk 0:01:14.5]} 20. Bd5 {[%clk 0:01:34.6]} 20... Bxd5 {[%clk 0:00:59.2]}
21. exd5 {[%clk 0:01:30.2]} 21... Nf4 {[%clk 0:00:54.8]} 22. Bxf4 {[%clk
0:01:28.9]} 22... exf4 {[%clk 0:00:46.6]} 23. Rab1 {[%clk 0:01:24.5]} 23...
Rxe1+ {[%clk 0:00:33.4]} 24. Qxe1 {[%clk 0:01:20.1]} 24... f3 {[%clk 0:00:26.5]}
25. Rxb7 {[%clk 0:01:14.3]} 25... Qg5 {[%clk 0:00:26.4]} 26. g3 {[%clk
0:01:11.8]} 26... Qxd5 {[%clk 0:00:20.4]} 27. Qe7 {[%clk 0:01:06.3]} 27... Rf8
{[%clk 0:00:19.7]} 28. Rd7 {[%clk 0:00:56.4]} 28... Qd1+ {[%clk 0:00:18.7]} 29.
Kh2 {[%clk 0:00:54.3]} 29... Qf1 {[%clk 0:00:19.1]} 0-1